Cogmind - Beta 14 @@@ ROGUE MODE // 2024.09.09 @ 20:22:19 Player: Triffids Result: Self-destructed Performance ------------- Evolutions (2) 1000 Regions Visited (4) 800 Robots Destroyed (34) 170 Value Destroyed (792) 792 Prototype IDs (3) 60 Alien Tech Used (0) 0 Bonus (2) 2 TOTAL SCORE: 2824 Bonus ------- High Alert Combat Kills 2 Cogmind --------- Core Integrity 519/550 Matter 300/300 Energy 142/150 System Corruption 0% Temperature Cool (0) Movement Rolling (105) Ox1 Location -8/Materials Parts ------- > --- POWER (1) -------- Light Angular Momentum Engine > --- PROPULSION (4) --- Aluminum Leg Carbon-fiber Leg Carbon-fiber Leg Armored Wheel > --- UTILITY (4) ------ Sensor Array Signal Interpreter ECM Suite Light Armor Plating > --- WEAPON (2) ------- Heavy Laser Improved Assault Rifle > --- INVENTORY (5) ---- Improved Ion Engine Heat Sink Beam Rifle Improved Assault Rifle Mini Grenade Launcher Peak State ------------ > --- POWER ------------ Light Angular Momentum Engine > --- PROPULSION ------- Aluminum Leg Carbon-fiber Leg Carbon-fiber Leg Armored Wheel > --- UTILITY ---------- Heat Sink Sensor Array Signal Interpreter Light Armor Plating > --- WEAPON ----------- Heavy Laser Improved Assault Rifle > --- INVENTORY -------- Improved Ion Engine ECM Suite Beam Rifle Improved Assault Rifle Mini Grenade Launcher [Rating: 26] Favorites ----------- Power Improved Ion Engine Engine Improved Ion Engine Propulsion Armored Wheel Leg Aluminum Leg Wheel Armored Wheel Utility Sensor Array Device Sensor Array Storage Small Storage Unit Processor Signal Interpreter Protection Light Armor Plating Weapon Particle Gun Energy Gun Particle Gun Ballistic Gun Improved Assault Rifle Launcher Grenade Launcher Special Weapon Mining Laser Build | -11 -10 -9 -9 -8 ------- Run | Yrd Mat Mat Min Mat Slots Evolved 4 | . . 2 . 2 Power . | . . . . . Propulsion 2 | . . . . 2 Utility 2 | . . 2 . . Weapon . | . . . . . Parts Attached 51 | 7 11 16 5 12 Power 5 | 1 1 1 . 2 Engine 5 | 1 1 1 . 2 Core . | . . . . . Reactor . | . . . . . Propulsion 9 | 2 2 . 1 4 Treads . | . . . . . Leg 6 | 2 . . . 4 Wheel 3 | . 2 . 1 . Hover . | . . . . . Flight . | . . . . . Utility 17 | 2 4 6 1 4 Device 9 | 1 4 . 1 3 Storage 1 | 1 . . . . Processor 3 | . . 3 . . Hackware . | . . . . . Protection 4 | . . 3 . 1 Artifact . | . . . . . Weapon 20 | 2 4 9 3 2 Energy Gun 10 | 1 3 5 . 1 Energy Cannon . | . . . . . Ballistic Gun 4 | 1 . 1 1 1 Ballistic Cannon . | . . . . . Launcher 5 | . 1 2 2 . Special Weapon 1 | . . 1 . . Impact Weapon . | . . . . . Slashing Weapon . | . . . . . Piercing Weapon . | . . . . . Special Melee Weapon . | . . . . . Unidentified Prototypes 1 | . . 1 . . Parts Lost 6 | . 1 1 2 2 Power . | . . . . . Propulsion 2 | . . . 1 1 Utility 4 | . 1 1 1 1 Weapon . | . . . . . Highest Loss Streak 2 | . 1 1 2 2 To Critical Strikes . | . . . . . Average Slot Usage (%) 96 | . 99 98 97 86 Engine 11 | . 14 11 11 9 Leg 7 | . 22 . . 12 Wheel 16 | . 5 22 22 12 Device 20 | . 23 18 19 19 Storage 1 | . 3 . . . Processor 7 | . . 10 11 9 Protection 8 | . . 12 11 6 Energy Gun 18 | . 25 20 11 9 Ballistic Gun 3 | . . 1 8 8 Peak Build Rating 26 | 7 13 16 16 26 Average Rating 13 | 4 10 15 15 19 On Entrance 9 | . 7 13 15 13 Naked Turns . | . . . . . Heaviest Build 22 | 13 19 19 19 22 Greatest Support 24 | 20 24 24 24 24 Greatest Overweight (x) 1 | 1 1 . . 1 Average Overweight (x) . | . . . . . Largest Inventory Capacity 8 | 8 8 5 5 5 Average Capacity 5 | 7 5 5 5 5 Most Carried 7 | 5 7 5 5 5 Average Carried 4 | 2 5 4 4 4 Final Capacity 8 | 8 5 5 5 5 Final Carried 5 | 2 5 5 4 5 Class Distribution -------------------- 61% | Mutant 38% | Scavenger-Mutant Dominant Class ---------------- Mutant | -10/Materials Mutant | -9/Materials Scavenger-Mutant | -9/Mines Scavenger-Mutant | -8/Materials Resources | -11 -10 -9 -9 -8 ----------- Run | Yrd Mat Mat Min Mat Matter Collected 904 | 282 58 282 24 258 Remotely . | . . . . . Salvage Created 1224 | 119 202 461 24 418 Parts 56 | 2 10 29 . 15 Haulers Intercepted 4 | . 1 3 . . Recyclers Shooed . | . . . . . Parts Field Recycled . | . . . . . Retrieved Matter . | . . . . . Parts Self-Destructed . | . . . . . Prevented . | . . . . . Kills | -11 -10 -9 -9 -8 ------- Run | Yrd Mat Mat Min Mat Combat Hostiles Destroyed 26 | . 5 12 3 6 Guns 15 | . 4 4 1 6 AOE 10 | . 1 7 2 . Classes Destroyed 8 | 2 4 1 1 . Tunneler 2 | 1 . 1 . . Hauler 4 | . 1 3 . . Recycler 2 | 1 . . . 1 Watcher 3 | . 2 1 . . Swarmer 10 | . 3 7 . . Grunt 9 | . 2 2 . 5 Sentry 4 | . . 3 . 1 Assembled 3 | . . . 3 . Best Kill Streak 5 | 2 3 4 2 5 Combat Bots Only 4 | . 3 4 2 4 Max Kills in Single Turn 3 | 1 1 3 1 2 Gunslinging 1 | . . . . 1 Exploded 3 | . 1 3 1 . Melee . | . . . . . Uniques/NPCs Destroyed . | . . . . . Combat | -11 -10 -9 -9 -8 -------- Run | Yrd Mat Mat Min Mat Hostile Shots Fired 103 | . 24 36 22 21 Missed 23 | . 3 7 7 6 Damage Taken 1126 | . 242 399 244 241 Core 189 | . 68 41 49 31 Absorbed by Shields . | . . . . . Core Remaining (%) 83 | 100 72 . 77 . Volleys Fired 82 | 4 18 30 13 17 Largest 2 | 2 2 2 2 2 Hottest 130 | 70 130 130 86 92 Shots Fired 163 | 8 36 59 26 34 Gun 149 | 8 32 55 20 34 Cannon . | . . . . . Launcher 13 | . 4 3 6 . Special 1 | . . 1 . . Kinetic 28 | 4 . . 7 17 Thermal 122 | 4 32 56 13 17 Explosive 13 | . 4 3 6 . Electromagnetic . | . . . . . Robot Hit Streak 15 | 4 9 9 8 15 Robot Miss Streak 3 | 2 2 3 2 2 Penetration Max . | . . . . . Secondary Targets 1 | . . . . 1 Max Gunslinging Chain 1 | . . . . 1 Shots Hit Robots 103 | 5 23 39 10 26 Core Hits 54 | 3 10 22 7 12 Critical Kills 2 | . . . . 2 Critical Parts Destroyed 1 | . . . 1 . Critical Strikes 7 | . . 4 1 2 Burn 4 | . . 4 . . Destroy 3 | . . . 1 2 Melee Attacks . | . . . . . Impact . | . . . . . Slashing . | . . . . . Piercing . | . . . . . Sneak Attacks . | . . . . . Combat Hostiles . | . . . . . Follow-up Attacks . | . . . . . Damage Inflicted 2232 | 68 486 998 264 416 Guns 1592 | 68 355 603 150 416 Cannons . | . . . . . Explosions 640 | . 131 395 114 . Melee . | . . . . . Ramming . | . . . . . Kinetic 287 | 30 . . 62 195 Thermal 1305 | 38 355 603 88 221 Explosive 640 | . 131 395 114 . Electromagnetic . | . . . . . Impact . | . . . . . Slashing . | . . . . . Piercing . | . . . . . Highest Corruption . | . . . . . Average Corruption . | . . . . . Corruption Purged . | . . . . . Corruption Blocked . | . . . . . Overload Shots . | . . . . . Overflow Damage 17 | . . 17 . . Projectiles . | . . . . . Explosions 17 | . . 17 . . Melee . | . . . . . Knockbacks . | . . . . . Impact . | . . . . . Kinetic . | . . . . . Secondary . | . . . . . Self-Inflicted Damage 115 | . 14 39 62 . Shots 7 | . 1 3 3 . Rammed . | . . . . . Targets Rammed . | . . . . . Kicked . | . . . . . Crushed . | . . . . . Highest Temperature 340 | 27 340 306 40 324 Average Temperature 95 | 13 122 72 22 152 Received Heat Transfer 392 | . 81 138 38 135 Effects 3 | . 3 . . . Interference 3 | . 3 . . . Siege Activations . | . . . . . Robots Corrupted . | . . . . . Combat Hostiles . | . . . . . Parts Fried . | . . . . . Impact Corruptions . | . . . . . Robots Melted 1 | . . 1 . . Combat Hostiles 1 | . . 1 . . Parts Melted 6 | . 1 4 . 1 Heat Transferred 3367 | 111 851 1702 222 481 Parts Sabotaged . | . . . . . Parts Stolen . | . . . . . Parts Stripped . | . . . . . Power Chain Reactions . | . . . . . Alert | -11 -10 -9 -9 -8 ------- Run | Yrd Mat Mat Min Mat Peak Influence 425 | 10 185 425 123 212 Initial 106 | . 6 78 106 47 Average 159 | 4 91 241 107 130 Maximum Alert Level 2 | . . 2 . 1 Low Security (%) 65 | 100 100 25 100 86 Level 1 34 | . . 73 . 13 Level 2 . | . . 1 . . Level 3 . | . . . . . Level 4 . | . . . . . Level 5 . | . . . . . High Security . | . . . . . Max Security . | . . . . . Squads Dispatched 1 | . . . . 1 Investigation . | . . . . . Extermination . | . . . . . Reinforcement 1 | . . . . 1 Assault . | . . . . . Garrison . | . . . . . Intercept . | . . . . . Searches Triggered . | . . . . . Construction Impeded . | . . . . . Haulers Reinforced . | . . . . . Active Scanning Responses . | . . . . . Cargo Convoy Interrupts . | . . . . . Stealth | -11 -10 -9 -9 -8 --------- Run | Yrd Mat Mat Min Mat Distress Signals 1 | . 1 . . . Communications Jammed . | . . . . . Distress Signals . | . . . . . Times Spotted 38 | . 7 15 10 6 Peak Tracking Total 5 | . 4 4 4 5 Tactical Retreats 3 | . . . 2 1 Traps | -11 -10 -9 -9 -8 ------- Run | Yrd Mat Mat Min Mat Traps Triggered . | . . . . . Indirectly . | . . . . . Trap Hack Attempts . | . . . . . Triggered . | . . . . . Disarmed . | . . . . . Reprogrammed . | . . . . . Reused . | . . . . . Traps Extracted . | . . . . . Installed . | . . . . . Triggered . | . . . . . Machines | -11 -10 -9 -9 -8 ---------- Run | Yrd Mat Mat Min Mat Machines Disabled 3 | . 2 1 . . Max in Single Turn 2 | . 2 1 . . Machines Repaired . | . . . . . Machines Dismantled . | . . . . . Machines Sabotaged . | . . . . . Overloaded Fab Kills . | . . . . . Hacking | -11 -10 -9 -9 -8 --------- Run | Yrd Mat Mat Min Mat Machines Accessed 6 | . 3 3 . . Terminals 3 | . 2 1 . . Fabricators . | . . . . . Repair Stations . | . . . . . Recycling Units 2 | . 1 1 . . Scanalyzers 1 | . . 1 . . Garrison Access . | . . . . . Total Hacks 15 | . 7 8 . . Successful 13 | . 6 7 . . Failed 2 | . 1 1 . . Catastrophic . | . . . . . Database Lockouts . | . . . . . Manual 5 | . 3 2 . . Terminals 9 | . 6 3 . . Fabricators . | . . . . . Repair Stations . | . . . . . Recycling Units 2 | . 1 1 . . Scanalyzers 4 | . . 4 . . Garrison Access . | . . . . . Terminal Hacks 4 | . 3 1 . . Robot Analysis 1 | . 1 . . . Prototype ID Bank 1 | . 1 . . . Locate Traps 1 | . 1 . . . Hauler Manifests 1 | . . 1 . . Fabricator Hacks . | . . . . . Repair Station Hacks . | . . . . . Recycling Unit Hacks 2 | . 1 1 . . Report Inventory 2 | . 1 1 . . Scanalyzer 4 | . . 4 . . Insert Component 2 | . . 2 . . Analyze 2 | . . 2 . . Garrison Access Hacks . | . . . . . Unauthorized Hacks 3 | . 2 1 . . Terminals 3 | . 2 1 . . Botnet 3 | . 2 1 . . Fabricators . | . . . . . Repair Stations . | . . . . . Recycling Units . | . . . . . Scanalyzers . | . . . . . Garrison Access . | . . . . . Data Cores Recovered . | . . . . . Used . | . . . . . Hacking Detections 3 | . 2 1 . . Full Trace Events . | . . . . . Feedback Events . | . . . . . Feedback Blocked . | . . . . . Robot Schematics Acquired . | . . . . . Robots Built . | . . . . . Authchips . | . . . . . Time . | . . . . . Total Robot Build Rating . | . . . . . Part Schematics Acquired 2 | . . 2 . . Parts Built . | . . . . . Authchips . | . . . . . Time . | . . . . . Total Part Build Rating . | . . . . . Parts Repaired . | . . . . . Time . | . . . . . Parts Recycled . | . . . . . Recycled Matter . | . . . . . Retrieved Matter . | . . . . . Retrieved Components . | . . . . . Parts Scanalyzed 2 | . . 2 . . Part Schematics Acquired 2 | . . 2 . . Parts Damaged . | . . . . . Bothacking | -11 -10 -9 -9 -8 ------------ Run | Yrd Mat Mat Min Mat Used RIF Installer . | . . . . . Robots Hacked . | . . . . . Non-combat . | . . . . . Combat . | . . . . . Robot Hacks Applied . | . . . . . Relay Couplers Released . | . . . . . Fabnet Peak Effective % . | . . . . . Robots Rewired . | . . . . . Allies Hacked . | . . . . . Hacks Repelled . | . . . . . Allies | -11 -10 -9 -9 -8 -------- Run | Yrd Mat Mat Min Mat Total Allies . | . . . . . Largest Group . | . . . . . Highest-Rated Group . | . . . . . Highest-Rated Ally . | . . . . . Total Orders . | . . . . . Ally Attacks . | . . . . . Total Damage . | . . . . . Kills . | . . . . . Allies Corrupted . | . . . . . Allies Melted . | . . . . . Intel | -11 -10 -9 -9 -8 ------- Run | Yrd Mat Mat Min Mat Robot Analysis Total 1 | . 1 . . . Derelict Logs Recovered 1 | . . . 1 . Drone Launches . | . . . . . Drone Recoveries . | . . . . . Exploration | -11 -10 -9 -9 -8 ------------- Run | Yrd Mat Mat Min Mat Turns Passed 1319 | 67 337 583 181 151 Spaces Moved 950 | 42 222 473 149 64 Core 20 | 20 . . . . Treads . | . . . . . Legs 175 | 22 153 . . . Wheels 755 | . 69 473 149 64 Hover . | . . . . . Flight . | . . . . . Fastest Speed 50 | 50 90 90 90 90 Average Speed 95 | 97 110 90 90 98 Slowest Speed 120 | 120 120 90 90 105 Overloaded Moves . | . . . . . Propulsion Burnouts . | . . . . . Robots Hopped . | . . . . . Cave-ins Triggered . | . . . . . Exploration Rate (%) 22 | 4 41 33 30 5 Regions Visited 4 Branch Regions 1 Pre-discovered Areas . | . . . . . Known Exits Taken 2 | . . 1 1 . Unknown Exits Taken 2 | 1 1 . . . Scrap Searched 2 | . . . 2 . Spaces Dug 1 | . . 1 . . Terrain Destroyed 56 | . 9 23 24 . Melee . | . . . . . Projectile 1 | . . 1 . . AOE 55 | . 9 22 24 . Terrain Rammed . | . . . . . Walls Destroyed . | . . . . . Machines Disabled . | . . . . . Actions | -11 -10 -9 -9 -8 --------- Run | Yrd Mat Mat Min Mat Total 1180 | 58 275 565 168 114 Wait 71 | 1 13 39 . 18 Move 946 | 41 221 472 148 64 Hop . | . . . . . Pick Up 15 | 5 6 2 1 1 Fast Attach 13 | 4 1 4 . 4 Attach 6 | 3 1 . 1 1 Detach 1 | . . 1 . . Swap 32 | . 9 12 4 7 Drop 14 | . 6 5 1 2 Fire 82 | 4 18 30 13 17 Melee . | . . . . . Ram . | . . . . . Kick . | . . . . . Crush . | . . . . . Escape Stasis . | . . . . . Rewire . | . . . . . Trap . | . . . . . Miscellaneous . | . . . . . Route ------- -11/Scrapyard -10/Materials -9/Materials -9/Mines -8/Materials History --------- Turn | Location | Event 14 | -11/Scrapyard | Discovered new exit (range 16) 68 | -11/Scrapyard | Entered Materials 266 | -10/Materials | Discovered new exit (range 12) 306 | -10/Materials | Build established: Mutant 405 | -10/Materials | Entered another Materials area 405 | -9/Materials | Evolved 2 slots: Utility x2 848 | -9/Materials | Discovered new exit (range 12) 874 | -9/Materials | Identified exit to Mines 988 | -9/Materials | Entered Mines 1046 | -9/Mines | Build established: Scavenger-Mutant 1073 | -9/Mines | Learned Materials garrison access intel 1107 | -9/Mines | Discovered new exit (range 14) 1109 | -9/Mines | Excavation squad dispatched 1109 | -9/Mines | A large section of the Mines collapsed 1168 | -9/Mines | Identified exit to Materials 1169 | -9/Mines | Entered Materials 1169 | -8/Materials | Evolved 2 slots: Propulsion x2 1170 | -8/Materials | Loaded intel: 1 garrison access location 1320 | -8/Materials | Self-destructed Last Messages --------------- 01267_ Acquired 20 matter. 01279_ Acquired 3 matter. 01290_ Imp. Heat Sink melted. 01290_ G-47 Trooper destroyed. 01291_ Acquired 3 matter. 01291_ R-06 Scavenger collects Lgt. Nuclear Core. 01294_ Acquired 3 matter. 01294_ R-06 Scavenger collects Imp. Ion Engine. 01297_ Acquired 3 matter. 01297_ R-06 Scavenger collects Heat Sink. 01299_ G-47 Trooper destroyed. 01300_ Acquired 3 matter. 01300_ R-06 Scavenger collects Lgt. Nuclear Core. 01302_ R-06 Scavenger collects Particle Gun. 01303_ Acquired 3 matter. 01306_ R-06 Scavenger collects Lgt. Treads. 01309_ R-06 Scavenger collects Aluminum Leg. 01313_ Dropped Aluminum Leg. 01314_ Acquired 10 matter. 01315_ K-01 Serf collects debris. Map ----- +----------------------------------------------------+ | | | | | | | | | | | | | ?????????????????????????????????????????????????? | | ?????????????????????????????????????????????????? | | ?????????????????????????????????????????????????? | | ?????????????????????????????????????????????????? | | ?????????????????????????????????????????????????? | | ?????????????????????????????????????????????????? | | ??????????????????????????#####??????????????????? | | ???????????????????######## #??????????????????? | | ???????????????????# # #??????????????????? | | ???????????????????#! """ # #??????????????????? | | ???????????????????# """ + #??????????????????? | | ???????????????????#] """ # #??????????????????? | | ???????????????????# """ # ###########????????? | | ???????????????????# # # *% #????????? | | ???????????????????######## #[ " #????????? | | ??????????????????????????# # "" #????????? | | ??????????????###?????????# #% "" #????????? | | ?????????????## #######r %+% % "" #????????? | | ?????????? =# S"" #????????? | | ?????H???? k @ # "" #????????? | | ?????????? ! # #????????? | | ????????????###a ###+#################????????? | | ??????????????## ???????????????????????????????? | | ?????????????????????????????????????????????????? | | ?????????????????????????????????????????????????? | | ?????????????????????????????????????????????????? | | ?????????????????????????????????????????????????? | | ?????????????????????????????????????????????????? | | ?????????????????????????????????????????????????? | | ?????????????????????????????????????????????????? | | ?????????????????????????????????????????????????? | | ?????????????????????????????????????????????????? | | ?????????????????????????????????????????????????? | | ?????????????????????????????????????????????????? | | ?????????????????????????????????????????????????? | | ?????????????????????????????????????????????????? | | ?????????????????????????????????????????????????? | | ?????????????????????????????????????????????????? | | ?????????????????????????????????????????????????? | | ?????????????????????????????????????????????????? | | ?????????????????????????????????????????????????? | | ?????????????????????????????????????????????????? | | ?????????????????????????????????????????????????? | | ?????????????????????????????????????????????????? | +----------------------------------------------------+ Best States ------------- Heat Dissipation 50 Energy Generation 18 Energy Capacity 265 Matter Stores 300 Matter Capacity 300 Sight Range 16 Robot Scan Range 14 Terrain Scan Density 10 ECM Strength 1 Armor Coverage 150 Propulsion Shielding 33 Evasion (%) 55 Targeting Accuracy 6 Item Schematics ----------------- Arm. Wheel | -9/Materials | Scanalyzed Sensor Array | -9/Materials | Scanalyzed Robot Schematics ------------------ None Fabricated ------------ Nothing Alien Tech Used ----------------- None Achievements -------------- None Challenges ------------ None Game ------ Seed XenonAntimatterExoskeleton Manual? 0 Play Time 00:24:43 Cumulative 212.2 hours Start 2024.09.06 @ 11:35:53 End 2024.09.09 @ 20:22:19 Sessions 3 Manual Loads 0 Difficulty Rogue Special Mode None Game No. 358 Rogue 358 Adventurer 0 Explorer 0 Win Type - Total 1 Types 1/0/0/0/0/0/0/0/0 Lore% 30 Gallery% 51 Achievement% 38 Wizard Run 0 Options --------- Layout 1 ASCII 0 Keyboard 1 Movement Vi Keybinds 0 Fullscreen 0 Font 20/SmallcapsGlow Map View 59x39 Zoom Use 0% Tactical HUD 1 Map Filters NONE Filters NONE Steam 1 RUN: 4fce2191-ac8c-43cd-8653-badb259dffe2